Cogmind - Beta 11.1 --- EXPLORER MODE // 2022.09.26 @ 21:36:42 Player: darlorth Result: Self-destructed Performance ------------- Evolutions (8) 4000 Regions Visited (13) 2600 Robots Destroyed (68) 340 Value Destroyed (1989) 1989 Prototype IDs (9) 180 Alien Tech Used (0) 0 Bonus (344) 344 TOTAL SCORE: 9453 Bonus ------- High Alert Combat Kills 30 Follower Combat Kills 14 Aligned with FarCom 300 Cogmind --------- Core Integrity 1120/1450 Matter 124/300 Energy 170/170 System Corruption 1% Temperature Critical (681) Movement Flying (184) Ox2 Location -2/Research Parts ------- > --- POWER (2) -------- Light Antimatter Reactor Improved Fusion Compressor > --- PROPULSION (8) --- Cooled Nuclear Pulse Thruster Field Propulsion Array Field Propulsion Array > --- UTILITY (12) ----- Advanced Thermal Generator Large Storage Unit Machine Analyzer Enhanced Optical Array Improved Signal Interpreter Armor Integrity Analyzer Experimental Cloaking Device Experimental Power Shielding Improved Hardlight Generator > --- WEAPON (2) ------- Enhanced Nova Cannon Heavy Gauss Cannon > --- INVENTORY (15) --- Xenon Bombardment Thruster Impulse Thruster Field Propulsion Array Medium Storage Unit Experimental Sensor Array Experimental Reaction Control System Experimental Reaction Control System Advanced System Restoration Module Enhanced Nova Cannon Micro-nuke Launcher Peak State ------------ > --- POWER ------------ Improved Fusion Compressor > --- PROPULSION ------- Xenon Bombardment Thruster Cooled Nuclear Pulse Thruster Nuclear Pulse Array Field Propulsion Array Field Propulsion Array > --- UTILITY ---------- Advanced Thermal Generator Large Storage Unit Compact Battery Machine Analyzer Enhanced Optical Array Improved Signal Interpreter Armor Integrity Analyzer Advanced Phase Shifter Experimental Cloaking Device Experimental Power Shielding Improved Weapon Shielding Advanced System Restoration Module > --- WEAPON ----------- Enhanced Nova Cannon Heavy Gauss Cannon > --- INVENTORY -------- Light Antimatter Reactor Xenon Bombardment Thruster Impulse Thruster Field Propulsion Array Medium Storage Unit Experimental Sensor Array Experimental Reaction Control System Experimental Reaction Control System Improved Hardlight Generator Enhanced Nova Cannon Micro-nuke Launcher [Rating: 142] Favorites ----------- Power Light Ion Engine Engine Light Ion Engine Power Core Micro Nuclear Core Reactor Light Antimatter Reactor Propulsion Flight Unit Treads Light Treads Flight Unit Flight Unit Utility Medium Storage Unit Device Experimental Sensor Array Storage Medium Storage Unit Processor Improved Terrain Scan Processor Protection Utility Shielding Weapon Battle Cannon Energy Gun Field Laser Energy Cannon Enhanced Nova Cannon Ballistic Gun Light Assault Rifle Ballistic Cannon Battle Cannon Launcher Grenade Launcher Slashing Weapon Greatsword Build | -11 -10 -10 -9 -9 -9 -8 -8 -7 -6 -5 -4 -3 -2 ------- Run | Scr Mat Min Mat Min Exi Min Mat Fac Fac Fac Fac Res Res Slots Evolved 17 | . 1 . 2 . . . 2 2 2 2 2 2 2 Power 1 | . . . . . . . . . 1 . . . . Propulsion 6 | . 1 . 1 . . . 1 1 1 1 . . . Utility 10 | . . . 1 . . . 1 1 . 1 2 2 2 Weapon . | . . . . . . . . . . . . . . Parts Attached 110 | 7 7 2 4 3 8 1 18 7 3 13 4 3 30 Power 12 | 1 2 . . . 1 . 2 . 1 . . 1 4 Engine 5 | 1 2 . . . 1 . . . 1 . . . . Core 3 | . . . . . . . 2 . . . . . 1 Reactor 4 | . . . . . . . . . . . . 1 3 Propulsion 24 | 2 2 . 1 2 . 1 6 2 2 3 1 . 2 Treads 2 | 2 . . . . . . . . . . . . . Leg . | . . . . . . . . . . . . . . Wheel . | . . . . . . . . . . . . . . Hover . | . . . . . . . . . . . . . . Flight 22 | . 2 . 1 2 . 1 6 2 2 3 1 . 2 Utility 50 | 2 2 . 3 . 3 . 5 2 . 8 3 2 20 Device 23 | . . . . . 1 . 1 1 . 8 1 . 11 Storage 4 | . . . . . 2 . . . . . . . 2 Processor 7 | . . . . . . . 2 1 . . . 1 3 Hackware . | . . . . . . . . . . . . . . Protection 16 | 2 2 . 3 . . . 2 . . . 2 1 4 Artifact . | . . . . . . . . . . . . . . Weapon 24 | 2 1 2 . 1 4 . 5 3 . 2 . . 4 Energy Gun 2 | . . . . . . . . 2 . . . . . Energy Cannon 8 | . . . . . 3 . 3 . . . . . 2 Ballistic Gun 3 | 2 1 . . . . . . . . . . . . Ballistic Cannon 6 | . . 2 . . 1 . 1 . . 1 . . 1 Launcher 3 | . . . . 1 . . 1 . . . . . 1 Special Weapon . | . . . . . . . . . . . . . . Impact Weapon . | . . . . . . . . . . . . . . Slashing Weapon 2 | . . . . . . . . 1 . 1 . . . Piercing Weapon . | . . . . . . . . . . . . . . Special Melee Weapon . | . . . . . . . . . . . . . . Unidentified Prototypes 9 | . . . . . 3 . 1 . . 1 . . 4 Parts Lost 23 | . . . . . . 3 1 . . . . . 19 Power 2 | . . . . . . . . . . . . . 2 Propulsion 7 | . . . . . . 2 1 . . . . . 4 Utility 13 | . . . . . . 1 . . . . . . 12 Weapon 1 | . . . . . . . . . . . . . 1 Highest Loss Streak 6 | . . . . . . 3 1 . . . . . 6 To Critical Strikes . | . . . . . . . . . . . . . . Average Slot Usage (%) 86 | . 95 89 90 90 90 83 82 92 92 88 90 88 80 Engine 6 | . 11 12 10 10 10 10 . . 5 5 5 4 1 Core 2 | . . . . . . . 7 7 6 5 5 1 . Treads 3 | . 16 12 10 2 . . . . . . . . . Flight 32 | . 16 25 30 38 40 36 37 41 43 38 35 31 24 Device 6 | . . . . . 4 . 3 12 12 15 18 18 14 Storage 5 | . . . . . 1 10 8 7 6 5 5 4 5 Processor 5 | . . . . . . . 7 12 12 11 10 11 16 Protection 12 | . 25 25 30 30 23 16 8 1 . . 6 9 6 Ballistic Gun 3 | . 25 3 . . . . . . . . . . . Ballistic Cannon 4 | . . 10 10 1 1 10 7 . . . . . . Slashing Weapon 1 | . . . . . . . . . 6 5 5 4 2 Naked Turns . | . . . . . . . . . . . . . . Heaviest Build 74 | 10 10 8 11 11 18 18 25 24 32 38 36 43 74 Greatest Support 55 | 40 40 8 12 16 16 16 22 28 34 45 48 48 55 Greatest Overweight (x) 2 | . 2 . . . 1 1 1 1 . . . . 2 Average Overweight (x) . | . . . . . . 1 . . . . . . . Largest Inventory Capacity 15 | 5 5 5 5 5 10 10 10 10 10 10 10 10 15 Average Capacity 8 | 5 5 5 5 5 5 10 10 10 10 10 10 10 12 Most Carried 13 | 4 5 5 5 5 5 7 10 10 10 10 10 10 13 Average Carried 7 | 2 4 4 3 4 4 6 8 9 9 9 9 9 10 Final Capacity 15 | 5 5 5 5 5 10 10 10 10 10 10 10 10 15 Final Carried 11 | 4 5 5 4 5 5 6 10 10 10 10 10 10 11 Class Distribution -------------------- 51% | Hacker-Mutant 30% | Hacker-Scout 17% | Hacker-Sprinter Dominant Class ---------------- Hacker-Mutant | -10/Materials Hacker-Mutant | -10/Mines Hacker-Mutant | -9/Materials Hacker-Sprinter | -9/Mines Hacker-Sprinter | -9/Exiles Hacker-Mutant | -8/Mines Hacker-Mutant | -8/Materials Hacker-Scout | -7/Factory Hacker-Scout | -6/Factory Hacker-Scout | -5/Factory Hacker-Scout | -4/Factory Hacker-Scout | -3/Research Hacker-Scout | -2/Research Resources | -11 -10 -10 -9 -9 -9 -8 -8 -7 -6 -5 -4 -3 -2 ----------- Run | Scr Mat Min Mat Min Exi Min Mat Fac Fac Fac Fac Res Res Matter Collected 1797 | 232 197 31 45 70 . 120 517 30 90 142 40 30 253 Remotely . | . . . . . . . . . . . . . . Salvage Created 2519 | . 347 . 99 4 . 102 494 . . 652 . 30 791 Parts 162 | . 19 . 7 4 . 2 38 . . 33 . 2 57 Haulers Intercepted 2 | . . . . . . . . . . 1 . . 1 Recyclers Shooed 2 | . 2 . . . . . . . . . . . . Parts Field Recycled . | . . . . . . . . . . . . . . Retrieved Matter . | . . . . . . . . . . . . . . Parts Self-Destructed . | . . . . . . . . . . . . . . Prevented . | . . . . . . . . . . . . . . Kills | -11 -10 -10 -9 -9 -9 -8 -8 -7 -6 -5 -4 -3 -2 ------- Run | Scr Mat Min Mat Min Exi Min Mat Fac Fac Fac Fac Res Res Combat Hostiles Destroyed 35 | . 7 . 3 3 . 2 11 . . . . . 9 Melee 7 | . . . . . . . . . . . . . 7 Guns 7 | . 7 . . . . . . . . . . . . Cannons 18 | . . . 3 . . 2 11 . . . . . 2 AOE 3 | . . . . 3 . . . . . . . . . Classes Destroyed 12 | . 5 . . . . . 3 . . 3 . . 1 Worker 5 | . . . . . . . 2 . . 2 . . 1 Builder 3 | . 1 . . . . . 1 . . . . . 1 Tunneler 2 | . . . . . . . . . . 1 . . 1 Hauler 2 | . . . . . . . . . . 1 . . 1 Recycler 6 | . 1 . . . . . 2 . . 3 . . . Operator 3 | . . . . . . . . . . 3 . . . Watcher 12 | . 1 . 1 . . . 3 . . 3 . 1 3 Swarmer 12 | . 2 . 1 3 . . 3 . . . . . 3 Grunt 11 | . 5 . 2 . . 2 2 . . . . . . Sentry 5 | . . . . . . . 5 . . . . . . Hunter 1 | . . . . . . . 1 . . . . . . Programmer 6 | . . . . . . . . . . . . . 6 Best Kill Streak 9 | . 5 . 4 3 . 2 9 . . 4 . 1 7 Combat Bots Only 7 | . 4 . 3 3 . 2 7 . . . . . 4 Max Kills in Single Turn 2 | . 1 . 1 2 . 1 1 . . 1 . 1 1 Gunslinging . | . . . . . . . . . . . . . . Exploded 2 | . . . . 2 . . . . . . . . . Melee 1 | . . . . . . . . . . . . . 1 Uniques/NPCs Destroyed . | . . . . . . . . . . . . . . Combat | -11 -10 -10 -9 -9 -9 -8 -8 -7 -6 -5 -4 -3 -2 -------- Run | Scr Mat Min Mat Min Exi Min Mat Fac Fac Fac Fac Res Res Damage Taken 3178 | . 288 . 18 6 . 342 368 . . . . . 2156 Core 549 | . 43 . 6 . . 79 91 . . . . . 330 Absorbed by Shields 143 | . . . . . . . . . . . . . 143 Redirected to Shielding 525 | . 34 . 1 . . 23 7 . . . . . 460 Core Remaining (%) 93 | 100 . 82 . . . 78 83 100 100 100 100 100 . Volleys Fired 154 | . 49 1 5 2 . 9 69 2 . 2 . . 15 Largest 2 | . 2 1 1 1 . 1 1 1 . 1 . . 2 Hottest 181 | . 40 39 39 30 . 39 39 68 . 48 . . 181 Shots Fired 211 | . 98 1 5 2 . 9 69 2 . 2 . . 23 Gun 98 | . 98 . . . . . . . . . . . . Cannon 111 | . . 1 5 . . 9 69 2 . 2 . . 23 Launcher 2 | . . . . 2 . . . . . . . . . Special . | . . . . . . . . . . . . . . Kinetic 194 | . 98 1 5 . . 9 69 . . 2 . . 10 Thermal 15 | . . . . . . . . 2 . . . . 13 Explosive 2 | . . . . 2 . . . . . . . . . Electromagnetic . | . . . . . . . . . . . . . . Robot Hit Streak 38 | . 22 . 6 7 . 4 38 . . . . . 25 Robot Miss Streak 3 | . 3 . . . . 1 1 . . . . . 2 Penetration Max . | . . . . . . . . . . . . . . Secondary Targets 3 | . 3 . . . . . . . . . . . . Max Gunslinging Chain 1 | . 1 . . . . . . . . . . . . Shots Hit Robots 209 | . 81 . 5 1 . 4 55 . . 18 . 3 42 Core Hits 87 | . 26 . 4 3 . 4 29 . . 8 . . 13 Critical Kills . | . . . . . . . . . . . . . . Critical Parts Destroyed . | . . . . . . . . . . . . . . Critical Strikes 7 | . . . 1 . . . 5 . . 1 . . . Blast 6 | . . . 1 . . . 5 . . . . . . Sever 1 | . . . . . . . . . . 1 . . . Melee Attacks 91 | . . . . . . . . . 5 41 1 6 38 Impact . | . . . . . . . . . . . . . . Slashing 91 | . . . . . . . . . 5 41 1 6 38 Piercing . | . . . . . . . . . . . . . . Sneak Attacks 14 | . . . . . . . . . . 8 . . 6 Combat Hostiles 2 | . . . . . . . . . . . . . 2 Follow-up Attacks . | . . . . . . . . . . . . . . Damage Inflicted 6634 | 6 656 . 98 169 . 92 1142 . . 1599 . 199 2673 Guns 656 | . 656 . . . . . . . . . . . . Cannons 2083 | . . . 98 . . 92 1142 . . . . . 751 Explosions 169 | . . . . 169 . . . . . . . . . Melee 3720 | . . . . . . . . . . 1599 . 199 1922 Ramming 6 | 6 . . . . . . . . . . . . . Kinetic 2215 | . 656 . 98 . . 92 1142 . . . . . 227 Thermal 524 | . . . . . . . . . . . . . 524 Explosive 169 | . . . . 169 . . . . . . . . . Electromagnetic . | . . . . . . . . . . . . . . Impact . | . . . . . . . . . . . . . . Slashing 3720 | . . . . . . . . . . 1599 . 199 1922 Piercing . | . . . . . . . . . . . . . . Highest Corruption 3 | . . . . . . 3 . . . . . . 3 Average Corruption 2 | . . . . . . 3 . . . . . . 2 Corruption Purged 2 | . . . . . . . . . . . . . 2 Corruption Blocked . | . . . . . . . . . . . . . . Effects 13 | . . . . . . 6 . . . . . . 7 Message Errors 6 | . . . . . . 3 . . . . . . 3 Matter Fused 4 | . . . . . . 2 . . . . . . 2 Energy Discharges 1 | . . . . . . 1 . . . . . . . Data Loss (minor) 2 | . . . . . . . . . . . . . 2 Overload Shots . | . . . . . . . . . . . . . . Overflow Damage 1084 | . . . . 35 . . 3 . . 496 . 92 458 Projectiles 24 | . . . . . . . 3 . . . . . 21 Explosions 35 | . . . . 35 . . . . . . . . . Melee 1025 | . . . . . . . . . . 496 . 92 437 Knockbacks 6 | . . . . . . . 2 . . . . . 4 Impact . | . . . . . . . . . . . . . . Kinetic 6 | . . . . . . . 2 . . . . . 4 Secondary . | . . . . . . . . . . . . . . Self-Inflicted Damage . | . . . . . . . . . . . . . . Shots . | . . . . . . . . . . . . . . Rammed 1 | 1 . . . . . . . . . . . . . Targets Rammed 1 | 1 . . . . . . . . . . . . . Kicked . | . . . . . . . . . . . . . . Crushed . | . . . . . . . . . . . . . . Highest Temperature 714 | . 41 2 17 . . 54 116 150 322 293 177 196 714 Average Temperature 90 | . 10 1 6 . . 36 25 46 121 110 77 117 153 Received Heat Transfer 459 | . 237 . 6 . . 63 117 . . . . . 36 Effects 17 | . . . . . . . . . 1 . . . 16 Shutdowns 4 | . . . . . . . . . . . . . 4 Energy Bleed 4 | . . . . . . . . . 1 . . . 3 Interference 3 | . . . . . . . . . . . . . 3 Short Circuit 2 | . . . . . . . . . . . . . 2 Damage (minor) 1 | . . . . . . . . . . . . . 1 Damage (major) 3 | . . . . . . . . . . . . . 3 Siege Activations . | . . . . . . . . . . . . . . Robots Corrupted . | . . . . . . . . . . . . . . Combat Hostiles . | . . . . . . . . . . . . . . Parts Fried . | . . . . . . . . . . . . . . Impact Corruptions . | . . . . . . . . . . . . . . Robots Melted . | . . . . . . . . . . . . . . Combat Hostiles . | . . . . . . . . . . . . . . Parts Melted 1 | . . . . . . . . . . . . . 1 Heat Transferred 407 | . . . . . . . . . . . . . 407 Parts Sabotaged . | . . . . . . . . . . . . . . Parts Stolen . | . . . . . . . . . . . . . . Parts Stripped . | . . . . . . . . . . . . . . Power Chain Reactions . | . . . . . . . . . . . . . . Missiles Intercepted . | . . . . . . . . . . . . . . Alert | -11 -10 -10 -9 -9 -9 -8 -8 -7 -6 -5 -4 -3 -2 ------- Run | Scr Mat Min Mat Min Exi Min Mat Fac Fac Fac Fac Res Res Peak Influence 610 | . 160 31 164 136 . 51 361 33 35 138 41 58 610 Initial 45 | . . 28 8 45 . . . 33 11 12 39 15 24 Average 79 | . 85 30 110 121 . 16 98 33 15 61 40 44 242 Maximum Alert Level 2 | . . . . . . . 1 . . . . . 2 Low Security (%) 91 | 100 100 100 100 100 . 100 89 100 100 100 100 100 39 Level 1 7 | . . . . . . . 10 . . . . . 49 Level 2 1 | . . . . . . . . . . . . . 11 Level 3 . | . . . . . . . . . . . . . . Level 4 . | . . . . . . . . . . . . . . Level 5 . | . . . . . . . . . . . . . . High Security . | . . . . . . . . . . . . . . Max Security . | . . . . . . . . . . . . . . Squads Dispatched 5 | . . . . . . . 1 . . 2 . . 2 Investigation . | . . . . . . . . . . . . . . Extermination 1 | . . . . . . . . . . . . . 1 Reinforcement 3 | . . . . . . . 1 . . 2 . . . Assault . | . . . . . . . . . . . . . . Garrison 1 | . . . . . . . . . . . . . 1 Intercept . | . . . . . . . . . . . . . . Searches Triggered . | . . . . . . . . . . . . . . Construction Impeded . | . . . . . . . . . . . . . . Haulers Reinforced . | . . . . . . . . . . . . . . Active Scanning Responses . | . . . . . . . . . . . . . . Cargo Convoy Interrupts . | . . . . . . . . . . . . . . Stealth | -11 -10 -10 -9 -9 -9 -8 -8 -7 -6 -5 -4 -3 -2 --------- Run | Scr Mat Min Mat Min Exi Min Mat Fac Fac Fac Fac Res Res Distress Signals 7 | . 1 . 1 . . . 2 . . . . . 3 Communications Jammed . | . . . . . . . . . . . . . . Distress Signals . | . . . . . . . . . . . . . . Times Spotted 91 | . 13 . 6 2 . 2 16 . . 5 . 1 46 Peak Tracking Total 13 | . 4 . 3 2 . 2 6 . . 2 . 1 13 Tactical Retreats 8 | . . . 1 . . . . . . . . . 7 Traps | -11 -10 -10 -9 -9 -9 -8 -8 -7 -6 -5 -4 -3 -2 ------- Run | Scr Mat Min Mat Min Exi Min Mat Fac Fac Fac Fac Res Res Traps Triggered 4 | . . . . . . . 2 . . 1 . . 1 Indirectly . | . . . . . . . . . . . . . . Trap Hack Attempts . | . . . . . . . . . . . . . . Triggered . | . . . . . . . . . . . . . . Disarmed . | . . . . . . . . . . . . . . Reprogrammed . | . . . . . . . . . . . . . . Reused . | . . . . . . . . . . . . . . Traps Extracted . | . . . . . . . . . . . . . . Installed . | . . . . . . . . . . . . . . Triggered . | . . . . . . . . . . . . . . Machines | -11 -10 -10 -9 -9 -9 -8 -8 -7 -6 -5 -4 -3 -2 ---------- Run | Scr Mat Min Mat Min Exi Min Mat Fac Fac Fac Fac Res Res Machines Disabled 1 | . . . 1 . . . . . . . . . . Max in Single Turn . | . . . . . . . . . . . . . . Garrison Access 3 | . . . . . . . . . . 1 1 . 1 Machines Sabotaged . | . . . . . . . . . . . . . . Garrisons Compromised . | . . . . . . . . . . . . . . Overloaded Fab Kills . | . . . . . . . . . . . . . . Hacking | -11 -10 -10 -9 -9 -9 -8 -8 -7 -6 -5 -4 -3 -2 --------- Run | Scr Mat Min Mat Min Exi Min Mat Fac Fac Fac Fac Res Res Machines Accessed 11 | . . . 1 . . 1 1 . 3 3 1 . 1 Terminals 4 | . . . . . . 1 . . 2 1 . . . Fabricators 2 | . . . . . . . . . 1 1 . . . Repair Stations . | . . . . . . . . . . . . . . Recycling Units 1 | . . . . . . . 1 . . . . . . Scanalyzers 1 | . . . 1 . . . . . . . . . . Garrison Access 3 | . . . . . . . . . . 1 1 . 1 Total Hacks 21 | . . . 4 . . 2 4 . 5 4 1 . 1 Successful 16 | . . . 4 . . 1 1 . 4 4 1 . 1 Failed 5 | . . . . . . 1 3 . 1 . . . . Catastrophic . | . . . . . . . . . . . . . . Database Lockouts . | . . . . . . . . . . . . . . Manual 5 | . . . . . 1 . . . 3 1 . . . Terminals 6 | . . . . . . 2 . . 3 1 . . . Fabricators 4 | . . . . . . . . . 2 2 . . . Repair Stations . | . . . . . . . . . . . . . . Recycling Units 4 | . . . . . . . 4 . . . . . . Scanalyzers 4 | . . . 4 . . . . . . . . . . Garrison Access 3 | . . . . . . . . . . 1 1 . 1 Terminal Hacks 3 | . . . . . . 1 . . 1 1 . . . Level Access Points 1 | . . . . . . . . . 1 . . . . Dispatch Records 1 | . . . . . . 1 . . . . . . . Zone Layout 1 | . . . . . . . . . . 1 . . . Fabricator Hacks 4 | . . . . . . . . . 2 2 . . . Load Schematic 2 | . . . . . . . . . 1 1 . . . Build 2 | . . . . . . . . . 1 1 . . . Repair Station Hacks . | . . . . . . . . . . . . . . Recycling Unit Hacks 1 | . . . . . . . 1 . . . . . . Retrieve Components 1 | . . . . . . . 1 . . . . . . Scanalyzer 4 | . . . 4 . . . . . . . . . . Insert Component 2 | . . . 2 . . . . . . . . . . Analyze 2 | . . . 2 . . . . . . . . . . Garrison Access Hacks 3 | . . . . . . . . . . 1 1 . 1 Seal Access 3 | . . . . . . . . . . 1 1 . 1 Unauthorized Hacks 1 | . . . . . . . . . 1 . . . . Terminals 1 | . . . . . . . . . 1 . . . . Assimilate 1 | . . . . . . . . . 1 . . . . Fabricators . | . . . . . . . . . . . . . . Repair Stations . | . . . . . . . . . . . . . . Recycling Units . | . . . . . . . . . . . . . . Scanalyzers . | . . . . . . . . . . . . . . Garrison Access . | . . . . . . . . . . . . . . Data Cores Recovered 1 | . . . . . . . . . . 1 . . . Used . | . . . . . . . . . . . . . . Hacking Detections 4 | . . . 1 . . . 1 . 2 . . . . Full Trace Events 1 | . . . . . . . 1 . . . . . . Feedback Events . | . . . . . . . . . . . . . . Feedback Blocked . | . . . . . . . . . . . . . . Robot Schematics Acquired . | . . . . . . . . . . . . . . Robots Built . | . . . . . . . . . . . . . . Authchips . | . . . . . . . . . . . . . . Time . | . . . . . . . . . . . . . . Total Robot Build Rating . | . . . . . . . . . . . . . . Part Schematics Acquired 2 | . . . 2 . . . . . . . . . . Parts Built 4 | . . . . . . . . . 2 2 . . . Authchips . | . . . . . . . . . . . . . . Time 102 | . . . . . . . . . 51 51 . . . Total Part Build Rating 4 | . . . . . . . . . 2 2 . . . Parts Repaired . | . . . . . . . . . . . . . . Time . | . . . . . . . . . . . . . . Parts Recycled . | . . . . . . . . . . . . . . Recycled Matter . | . . . . . . . . . . . . . . Retrieved Matter . | . . . . . . . . . . . . . . Retrieved Components 6 | . . . . . . . 6 . . . . . . Parts Scanalyzed 2 | . . . 2 . . . . . . . . . . Part Schematics Acquired 2 | . . . 2 . . . . . . . . . . Parts Damaged . | . . . . . . . . . . . . . . Bothacking | -11 -10 -10 -9 -9 -9 -8 -8 -7 -6 -5 -4 -3 -2 ------------ Run | Scr Mat Min Mat Min Exi Min Mat Fac Fac Fac Fac Res Res Used RIF Installer . | . . . . . . . . . . . . . . Robots Hacked . | . . . . . . . . . . . . . . Non-combat . | . . . . . . . . . . . . . . Combat . | . . . . . . . . . . . . . . Robot Hacks Applied . | . . . . . . . . . . . . . . Relay Couplers Released . | . . . . . . . . . . . . . . Fabnet Peak Effective % . | . . . . . . . . . . . . . . Robots Rewired . | . . . . . . . . . . . . . . Allies Hacked . | . . . . . . . . . . . . . . Hacks Repelled . | . . . . . . . . . . . . . . Allies | -11 -10 -10 -9 -9 -9 -8 -8 -7 -6 -5 -4 -3 -2 -------- Run | Scr Mat Min Mat Min Exi Min Mat Fac Fac Fac Fac Res Res Total Allies 4 | . . 3 . 1 . . . . . . . . . Largest Group 4 | . . 3 3 4 4 . . . . . . . . Highest-Rated Group 71 | . . 40 40 71 71 . . . . . . . . Highest-Rated Ally 31 | . . 16 16 31 31 . . . . . . . . Total Orders 1 | . . . . . . . . . . 1 . . . EXPLORE 1 | . . . . . . . . . . 1 . . . Ally Attacks 15 | . . . 15 . . . . . . . . . . Total Damage 129 | . . . 129 . . . . . . . . . . Kills 2 | . . . 2 . . . . . . . . . . Allies Corrupted . | . . . . . . . . . . . . . . Allies Melted . | . . . . . . . . . . . . . . Intel | -11 -10 -10 -9 -9 -9 -8 -8 -7 -6 -5 -4 -3 -2 ------- Run | Scr Mat Min Mat Min Exi Min Mat Fac Fac Fac Fac Res Res Robot Analysis Total . | . . . . . . . . . . . . . . Derelict Logs Recovered . | . . . . . . . . . . . . . . Drone Launches 2 | . . . . . . . . . . 2 . . . Drone Recoveries . | . . . . . . . . . . . . . . Exploration | -11 -10 -10 -9 -9 -9 -8 -8 -7 -6 -5 -4 -3 -2 ------------- Run | Scr Mat Min Mat Min Exi Min Mat Fac Fac Fac Fac Res Res Turns Passed 4772 | 93 522 322 97 248 87 979 588 132 194 735 117 76 582 Spaces Moved 6760 | 54 497 495 127 384 228 658 747 281 273 1610 166 258 982 Core 11 | 11 . . . . . . . . . . . . . Treads 127 | 43 84 . . . . . . . . . . . . Legs . | . . . . . . . . . . . . . . Wheels . | . . . . . . . . . . . . . . Hover . | . . . . . . . . . . . . . . Flight 6622 | . 413 495 127 384 228 658 747 281 273 1610 166 258 982 Fastest Speed 17 | 50 57 57 54 31 31 111 25 22 19 17 19 19 19 Average Speed 43 | 137 75 57 54 35 31 111 53 24 19 18 19 19 29 Slowest Speed 240 | 160 240 57 54 54 111 112 112 106 19 19 19 19 197 Overloaded Moves . | . . . . . . . . . . . . . . Propulsion Burnouts . | . . . . . . . . . . . . . . Robots Hopped 27 | . 3 1 3 4 . . . . 2 7 . . 7 Cave-ins Triggered 2 | . . . . . . 1 . . . . . . 1 Exploration Rate (%) 42 | 5 89 98 15 65 60 95 55 9 8 47 4 7 31 Regions Visited 13 Branch Regions 4 Pre-discovered Areas 1 | . . 1 . . . . . . . . . . . Known Exits Taken 13 | 1 1 1 1 1 1 1 1 1 1 1 1 1 . Unknown Exits Taken . | . . . . . . . . . . . . . . Scrap Searched 2 | . . . . 1 . 1 . . . . . . . Spaces Dug 53 | . . . . . . 4 6 . 5 23 1 3 11 Terrain Destroyed 66 | . . 1 . 6 . 5 6 . 5 24 1 3 15 Melee 42 | . . . . . . . . . 5 22 1 3 11 Projectile 18 | . . 1 . . . 5 6 . . 2 . . 4 AOE 6 | . . . . 6 . . . . . . . . . Terrain Rammed . | . . . . . . . . . . . . . . Walls Destroyed . | . . . . . . . . . . . . . . Machines Disabled . | . . . . . . . . . . . . . . Actions | -11 -10 -10 -9 -9 -9 -8 -8 -7 -6 -5 -4 -3 -2 --------- Run | Scr Mat Min Mat Min Exi Min Mat Fac Fac Fac Fac Res Res Total 8203 | 72 560 533 147 490 244 895 870 340 403 1950 248 273 1178 Wait 937 | . . 32 11 100 . 226 8 43 117 264 75 . 61 Move 6695 | 53 490 492 120 375 227 656 746 280 268 1597 165 257 969 Hop 23 | . 3 1 3 4 . . . . 2 5 . . 5 Pick Up 86 | 11 4 1 2 2 2 2 16 3 5 7 2 4 25 Fast Attach 28 | . 4 2 . 1 3 . 4 4 . 5 . . 5 Attach 63 | 7 . . 4 1 2 1 12 1 2 4 3 3 23 Detach 11 | . . . 1 1 1 . 2 . . 1 . . 5 Swap 19 | . 3 . . 1 3 . 2 2 1 4 1 . 2 Drop 69 | . 7 4 1 3 6 . 11 5 3 13 1 3 12 Fire 154 | . 49 1 5 2 . 9 69 2 . 2 . . 15 Melee 91 | . . . . . . . . . 5 41 1 6 38 Ram . | . . . . . . . . . . . . . . Kick . | . . . . . . . . . . . . . . Crush 1 | 1 . . . . . . . . . . . . . Escape Stasis 26 | . . . . . . 1 . . . 7 . . 18 Rewire . | . . . . . . . . . . . . . . Trap . | . . . . . . . . . . . . . . Miscellaneous . | . . . . . . . . . . . . . . Route ------- -11/Scrapyard -10/Materials (discovered 3 exits: *Mat x2 / *Min) -10/Mines (discovered 2 exits: *Mat x2) -9/Materials -9/Mines (discovered 2 exits: *Mat / *Exi) -9/Exiles -8/Mines -8/Materials (discovered 3 exits: *Fac x2 / *Sto) -7/Factory -6/Factory (discovered 4 exits: *Fac x4) -5/Factory (discovered 2 exits: *Fac / Upp) -4/Factory -3/Research -2/Research (discovered 1 exit: *Tes) History --------- Turn | Location | Event 18 | -11/Scrapyard | Identified exit to Materials 18 | -11/Scrapyard | Discovered exit to Materials (range 16) 94 | -11/Scrapyard | Entered Materials 94 | -10/Materials | Evolved 1 slot: Propulsion x1 309 | -10/Materials | Build established: Hacker-Mutant 364 | -10/Materials | Identified exit to Mines 364 | -10/Materials | Discovered exit to Mines (range 14) 436 | -10/Materials | Identified exit to Materials 436 | -10/Materials | Discovered exit to Materials (range 11) 537 | -10/Materials | Discovered exit to Materials (range 15) 616 | -10/Materials | Entered Mines 621 | -10/Mines | Assisted by bots powering up and referring to "LRC-V3" 661 | -10/Mines | A weapon hastily lodged in a ceiling crevice suddenly fell to the ground 773 | -10/Mines | Discovered exit to Materials (range 8) 774 | -10/Mines | Learned location of Storage (-8) 850 | -10/Mines | Discovered exit to Materials (range 8) 938 | -10/Mines | Entered Materials 938 | -9/Materials | Accompanied by 3 allies 938 | -9/Materials | Evolved 2 slots: Propulsion x1, Utility x1 1021 | -9/Materials | Identified exit to Mines 1021 | -9/Materials | Discovered exit to Mines (range 5) 1035 | -9/Materials | Entered Mines 1035 | -9/Mines | Accompanied by 3 allies 1059 | -9/Mines | Identified exit to Materials 1059 | -9/Mines | Discovered exit to Materials (range 7) 1103 | -9/Mines | Found a damaged Exp. Sensor Array with a note attached 1104 | -9/Mines | Found Prototype Device 1139 | -9/Mines | Received a Mining Laser from a helpful Derelict 1181 | -9/Mines | Deemed a non-threat by the Exiles lab entrance 1181 | -9/Mines | Identified exit to Exiles 1181 | -9/Mines | Discovered exit to Exiles (range 5) 1283 | -9/Mines | Entered Exiles 1283 | -9/Exiles | Accompanied by 4 allies 1292 | -9/Exiles | Met 8R-AWN 1297 | -9/Exiles | Met EX-HEX 1306 | -9/Exiles | Met EX-BIN 1310 | -9/Exiles | Aligned with FarCom system 1310 | -9/Exiles | Given EX-Vault access code 1317 | -9/Exiles | Opened EX-Vault 1319 | -9/Exiles | Found Prototype Energy Cannon 1319 | -9/Exiles | Identified Gui. Plasma Cannon 1321 | -9/Exiles | Identified Exp. Sensor Array 1325 | -9/Exiles | Found Prototype Energy Cannon 1332 | -9/Exiles | Identified YOLO Cannon 1342 | -9/Exiles | Warned to stay clear of 0b10 Research branches 1350 | -9/Exiles | Met EX-DEC 1362 | -9/Exiles | Identified exit to Mines 1362 | -9/Exiles | Discovered exit to Mines (range 14) 1370 | -9/Exiles | Stole two prototypes: YOLO Cannon, Gui. Plasma Cannon 1370 | -9/Exiles | Entered Mines 2019 | -8/Mines | Crushed by falling debris 2050 | -8/Mines | Lost 3 parts (2n1u) 2335 | -8/Mines | Discovered exit to Materials (range 10) 2349 | -8/Mines | Entered Materials 2349 | -8/Materials | Evolved 2 slots: Propulsion x1, Utility x1 2591 | -8/Materials | Identified exit to Storage 2591 | -8/Materials | Discovered exit to Storage (range 18) 2607 | -8/Materials | Identified exit to Factory 2607 | -8/Materials | Discovered exit to Factory (range 17) 2760 | -8/Materials | Destroyed 7 combat bots 2816 | -8/Materials | Discovered exit to Factory (range 3) 2937 | -8/Materials | Entered Factory 2937 | -7/Factory | Evolved 2 slots: Propulsion x1, Utility x1 2939 | -7/Factory | FarCom data flow suspended 3067 | -7/Factory | Identified exit to Factory 3067 | -7/Factory | Discovered exit to Factory (range 3) 3069 | -7/Factory | Entered another Factory area 3069 | -6/Factory | Evolved 2 slots: Power x1, Propulsion x1 3131 | -6/Factory | Fabricated Propulsion Shielding (x2) 3191 | -6/Factory | Identified exit to Factory 3263 | -6/Factory | Entered another Factory area 3263 | -5/Factory | Evolved 2 slots: Propulsion x1, Utility x1 3755 | -5/Factory | Identified exit to Upper Caves 3755 | -5/Factory | Discovered exit to Upper Caves (range 15) 3831 | -5/Factory | Build established: Hacker-Scout 3979 | -5/Factory | Fabricated Propulsion Shielding? 3985 | -5/Factory | Identified exit to Factory 3985 | -5/Factory | Discovered exit to Factory (range 11) 3998 | -5/Factory | Entered another Factory area 3998 | -4/Factory | Evolved 2 slots: Utility x2 4095 | -4/Factory | Identified exit to Research 4095 | -4/Factory | Discovered exit to Research (range 20) 4115 | -4/Factory | Entered Research 4115 | -3/Research | Evolved 2 slots: Utility x2 4190 | -3/Research | Identified exit to Research 4190 | -3/Research | Discovered exit to Research (range 5) 4191 | -3/Research | Entered another Research area 4191 | -2/Research | Evolved 2 slots: Utility x2 4419 | -2/Research | Crushed by falling debris 4452 | -2/Research | Lost 3 parts (3u) 4458 | -2/Research | Spotted B-90 Cyclops 4480 | -2/Research | Identified exit to Testing 4480 | -2/Research | Discovered exit to Testing (range 5) 4504 | -2/Research | Lost 3 parts (1p1n1u) 4580 | -2/Research | Lost 5 parts (1n3u1w) 4682 | -2/Research | Found Prototype Device 4683 | -2/Research | Identified Exp. Cloaking Device 4755 | -2/Research | Garrison activated, responded to threat 4773 | -2/Research | Self-destructed Last Messages --------------- 04764_ Exp. Cloaking Device temporarily disabled. 04765_ Overheating: Field Propulsion Array damaged (-26). 04765_ Penetrated by Slug. 04766_ Overheating: Energy bleed (-42). 04766_ Penetrated by Slug. 04767_ Power failure, Imp. Fusion Compressor shutdown. 04767_ Overheating: System interference. 04767_ Enh. Nova Cannon temporarily disabled. 04767_ Imp. Signal Interpreter temporarily disabled. 04768_ Penetrated by Slug. 04768_ Slug penetrates Wall. 04770_ Power failure, Lgt. Antimatter Reactor shutdown. 04770_ Overheating: Enh. Nova Cannon damaged (-57). 04770_ Overheating: Imp. Fusion Compressor damaged (-57). 04770_ Overheating: Lrg. Storage Unit damaged (-95). 04771_ H-88 Terminator knocked back. 04771_ Penetrated by Slug. 04771_ Energy Filter destroyed. 04771_ Penetrated by Slug. 04772_ Overheating: Energy bleed (-22). Map ----- +----------------------------------------------------+ | # #???????????????????????????????????????????? | | # #???????????????????????????????????????????? | | # #???????????????????????????????????????????? | | # #???????????????????????????????????????????? | | # #????"""""??????????????????????????????????? | | # #????""T""####??????????????????????????????? | | # ???????? * ??????????????????????????????? | | ?? ???????? ??????????????????????????????? | | # ????????? ??????????????????????????????? | | # ???????? ??????????????????????????????? | | # "?"????""" #??????????????????????????????? | | # "?"????""" #??????????????????????????????? | | # ""G""???""" #??????????????????????????????? | | # ???????? #"""???????????#???????????????? | | + ???????? #"""??????#??? #???????????????? | | # ????????? #"""????? #?? #???????????????? | | # #?????????# #???????? #?? #???????????????? | | # #?????????# #???????? #? #???????????????? | | # #?????????# #???????? # #???????????????? | | # #??"""???## #######+#;# #???????????????? | | + +??""""??# s % % #???????????????? | | # #??""""??# s h%% #???????????????? | | # #???"""??# h !% +???????????????? | | # #????????# % [|* #???????????????? | | # #????????# ###;;;;########???????????????? | | # #????????# #?# !@= | #??????????????????? | | # ########## #?# ! #??????????????????? | | # + + #?# w #??????????????????? | | # # # #?# #??????????????????? | | # # """ # #?# """ #??????????????????? | | # "R" + #?# """ #??????????????????? | | ###### " " ######?# """ #??????????????????? | | ?????# #??????# ! #??????????????????? | | ?????# #??????# #??????????????????? | | ?????# = #??????##########??????????????????? | | ?????# #??????????????????????????????????? | | ?????##########??????????????????????????????????? | | ?????????????????????????????????????????????????? | | ?????????????????????????????????????????????????? | | ?????????????????????????????????????????????????? | | ?????????????????????????????????????????????????? | | ?????????????????????????????????????????????????? | | ?????????????????????????????????????????????????? | | ?????????????????????????????????????????????????? | | ?????????????????????????????????????????????????? | | ?????????????????????????????????????????????????? | | ?????????????????????????????????????????????????? | | ?????????????????????????????????????????????????? | | ?????????????????????????????????????????????????? | | ?????????????????????????????????????????????????? | +----------------------------------------------------+ Best States ------------- Heat Dissipation 49 Coolant Potential 80 Energy Generation 39 Energy Capacity 420 Matter Stores 300 Matter Capacity 300 Sight Range 22 Robot Scan Range 20 Terrain Scan Range 20 Terrain Scan Density 110 Cloak Strength 4 Power Amplification 20 Armor Coverage 150 Resistance: KI 35 Resistance: TH 35 Resistance: EX 35 Resistance: EM 35 Resistance: I 35 Resistance: S 35 Resistance: P 35 Power Shielding 90 Propulsion Shielding 33 Utility Shielding 66 Weapon Shielding 66 Phase Shifting 15 Evasion (%) 93 Armor Integrity Analysis 30 Recoil Reduction 2 Energy Filtering 30 Offensive Hacking 20 Item Schematics ----------------- Propulsion Shielding | -9/Materials | Scanalyzed Utility Shielding | -9/Materials | Scanalyzed Robot Schematics ------------------ None Fabricated ------------ Propulsion Shielding | x2 | -6/Factory Propulsion Shielding | x2 | -5/Factory Alien Tech Used ----------------- None Achievements -------------- None Challenges ------------ None Game ------ Seed HeatHardlightInterrupter Manual? 0 Play Time 01:28:29 Cumulative 258.8 hours Start 2022.09.25 @ 19:51:45 End 2022.09.26 @ 21:36:42 Sessions 3 Manual Loads 0 Difficulty Explorer Special Mode None Game No. 266 Rogue 119 Adventurer 81 Explorer 66 Win Type - Total 13 Types 11/0/2/0/0/0/0/0/0 Lore% 43 Gallery% 73 Achievement% 60 Wizard Run 0 Options --------- ASCII 0 Keyboard 0 Movement Mouse Keybinds 0 Fullscreen 1 Font 12/Tallcaps Map View 83x54 Tactical HUD 1 Map Filters NONE Filters NONE Steam 1 RUN: af62c597-e55b-4afb-81a2-4a92f1987ba5